Workbook

Sheet 派對總覽
B3: 派對總覽
B6: 活動 | D6: 賓客摘要 | H6: ="未回覆人數： "&OutstandingRSVPs -> 未回覆人數： 2
B7: 奶奶的 75 歲生日 | D7: 回覆總覽 | F7: 每個賓客的成本 | H7: 預算金額
D8: 已確認的賓客 | E8: 已確認總數 | F8: 食物 | G8: 其他 | H8: 合計
B9: 日期 | D9: 大人 | E9: =SUMIF(GuestTable[出席？],"=是",GuestTable[大人]) -> 26 | F9: =FoodTable[[#Data],[#Totals],[每個大人的成本]] -> NT$57.69 | G9: =EssentialCostPerGuest -> NT$560.87 | H9: =(AttendeeSummary[[#This Row],[食物]]+AttendeeSummary[[#This Row],[其他]])*AdultTotal -> NT$16,082.61
B10: 2011-06-14 | D10: 小孩 | E10: =SUMIF(GuestTable[出席？],"=是",GuestTable[小孩]) -> 20 | F10: =FoodTable[每個小孩的成本] -> NT$48.91 | G10: =EssentialCostPerGuest -> NT$560.87 | H10: =(AttendeeSummary[[#This Row],[食物]]+AttendeeSummary[[#This Row],[其他]])*ChildrenTotal -> NT$12,195.65
D11: 合計 | E11: =SUBTOTAL(109,AttendeeSummary[已確認總數]) -> 46 | F11: ="平均值 "&TEXT(SUBTOTAL(101,AttendeeSummary[食物]),"#,##0.00") -> 平均值 53.30 | G11: ="平均值 "&TEXT(SUBTOTAL(101,AttendeeSummary[其他]),"#,##0.00") -> 平均值 560.87 | H11: =SUBTOTAL(109,AttendeeSummary[合計]) -> NT$28,278.26
B12: 時間
B13: 下午 2 - 4 點
B15: 地點 | D15: 預算摘要
B16: 怡君阿姨家 | D16: 項目 | E16: 個數 | F16: 預算金額 | G16: 總成本 | H16: 差額
D17: 餐飲 | E17: =COUNTA(FoodTable[食物或飲料項目]) -> 18 | F17: NT$15,000.00 | G17: =FoodTable[[#Totals],[總成本]] -> NT$14,250.00 | H17: =BudgetOverview[[#This Row],[預算金額]]-BudgetOverview[[#This Row],[總成本]] -> NT$750.00
D18: =Table1Header -> 設備與供應品 | E18: =COUNTA(Table1Budget[設備與供應品]) -> 7 | F18: NT$12,000.00 | G18: =Table1Budget[[#Totals],[成本]] -> NT$12,000.00 | H18: =BudgetOverview[[#This Row],[預算金額]]-BudgetOverview[[#This Row],[總成本]] -> NT$0.00
D19: =Table2Header -> 佈置裝飾 | E19: =COUNTA(Table2Budget[佈置裝飾]) -> 4 | F19: NT$4,500.00 | G19: =Table2Budget[[#Totals],[成本]] -> NT$5,250.00 | H19: =BudgetOverview[[#This Row],[預算金額]]-BudgetOverview[[#This Row],[總成本]] -> (NT$750.00)
D20: =Table3Header -> 其他 | E20: =COUNTA(Table3Budget[其他]) -> 4 | F20: NT$9,000.00 | G20: =Table3Budget[[#Totals],[成本]] -> NT$8,550.00 | H20: =BudgetOverview[[#This Row],[預算金額]]-BudgetOverview[[#This Row],[總成本]] -> NT$450.00
D21: 合計 | E21: =SUBTOTAL(109,BudgetOverview[個數]) -> 33 | F21: =SUBTOTAL(109,BudgetOverview[預算金額]) -> NT$40,500.00 | G21: =SUBTOTAL(109,BudgetOverview[總成本]) -> NT$40,050.00 | H21: =BudgetOverview[[#Totals],[預算金額]]-BudgetOverview[[#Totals],[總成本]] -> NT$450.00

Sheet 賓客名單
B3: 賓客名單
B7: 姓名 | C7: 地址 | D7: 鄉鎮市區 | E7: 縣/市 | F7: 郵遞區號 | G7: 電話 | H7: 電子郵件 | I7: 出席？ | J7: 小孩 | K7: 大人 | L7: 合計
B8: 家庭 1 | C8: 地址 1 | D8: 鄉鎮市區 1 | E8: 縣/市 1 | F8: 郵遞區號 1 | G8: 電話 1 | H8: 電子郵件 1 | I8: 否 | J8: 2 | K8: 2 | L8: =SUM(GuestTable[[#This Row],[小孩]:[大人]]) -> 4
B9: 家庭 2 | C9: 地址 2 | D9: 鄉鎮市區 2 | E9: 縣/市 2 | F9: 郵遞區號 2 | G9: 電話 2 | H9: 電子郵件 2 | I9: 是 | J9: 1 | K9: 1 | L9: =SUM(GuestTable[[#This Row],[小孩]:[大人]]) -> 2
B10: 家庭 3 | C10: 地址 3 | D10: 鄉鎮市區 3 | E10: 縣/市 3 | F10: 郵遞區號 3 | G10: 電話 3 | H10: 電子郵件 3 | I10: 是 | J10: 3 | K10: 3 | L10: =SUM(GuestTable[[#This Row],[小孩]:[大人]]) -> 6
B11: 家庭 4 | C11: 地址 4 | D11: 鄉鎮市區 4 | E11: 縣/市 4 | F11: 郵遞區號 4 | G11: 電話 4 | H11: 電子郵件 4 | K11: 2 | L11: =SUM(GuestTable[[#This Row],[小孩]:[大人]]) -> 2
B12: 家庭 5 | C12: 地址 5 | D12: 鄉鎮市區 5 | E12: 縣/市 5 | F12: 郵遞區號 5 | G12: 電話 5 | H12: 電子郵件 5 | I12: 是 | J12: 4 | K12: 3 | L12: =SUM(GuestTable[[#This Row],[小孩]:[大人]]) -> 7
B13: 家庭 6 | C13: 地址 6 | D13: 鄉鎮市區 6 | E13: 縣/市 6 | F13: 郵遞區號 6 | G13: 電話 6 | H13: 電子郵件 6 | I13: 是 | J13: 2 | K13: 2 | L13: =SUM(GuestTable[[#This Row],[小孩]:[大人]]) -> 4
B14: 家庭 7 | C14: 地址 7 | D14: 鄉鎮市區 7 | E14: 縣/市 7 | F14: 郵遞區號 7 | G14: 電話 7 | H14: 電子郵件 7 | I14: 是 | J14: 1 | K14: 4 | L14: =SUM(GuestTable[[#This Row],[小孩]:[大人]]) -> 5
B15: 家庭 8 | C15: 地址 8 | D15: 鄉鎮市區 8 | E15: 縣/市 8 | F15: 郵遞區號 8 | G15: 電話 8 | H15: 電子郵件 8 | I15: 否 | J15: 5 | K15: 3 | L15: =SUM(GuestTable[[#This Row],[小孩]:[大人]]) -> 8
B16: 家庭 9 | C16: 地址 9 | D16: 鄉鎮市區 9 | E16: 縣/市 9 | F16: 郵遞區號 9 | G16: 電話 9 | H16: 電子郵件 9 | I16: 是 | J16: 3 | K16: 2 | L16: =SUM(GuestTable[[#This Row],[小孩]:[大人]]) -> 5
B17: 家庭 10 | C17: 地址 10 | D17: 鄉鎮市區 10 | E17: 縣/市 10 | F17: 郵遞區號 10 | G17: 電話 10 | H17: 電子郵件 10 | I17: 是 | K17: 4 | L17: =SUM(GuestTable[[#This Row],[小孩]:[大人]]) -> 4
B18: 家庭 11 | C18: 地址 11 | D18: 鄉鎮市區 11 | E18: 縣/市 11 | F18: 郵遞區號 11 | G18: 電話 11 | H18: 電子郵件 11 | I18: 是 | J18: 3 | K18: 5 | L18: =SUM(GuestTable[[#This Row],[小孩]:[大人]]) -> 8
B19: 家庭 12 | C19: 地址 12 | D19: 鄉鎮市區 12 | E19: 縣/市 12 | F19: 郵遞區號 12 | G19: 電話 12 | H19: 電子郵件 12 | I19: 否 | J19: 2 | K19: 3 | L19: =SUM(GuestTable[[#This Row],[小孩]:[大人]]) -> 5
B20: 家庭 13 | C20: 地址 13 | D20: 鄉鎮市區 13 | E20: 縣/市 13 | F20: 郵遞區號 13 | G20: 電話 13 | H20: 電子郵件 13 | I20: 是 | J20: 3 | K20: 2 | L20: =SUM(GuestTable[[#This Row],[小孩]:[大人]]) -> 5
B21: 家庭 14 | C21: 地址 14 | D21: 鄉鎮市區 14 | E21: 縣/市 14 | F21: 郵遞區號 14 | G21: 電話 14 | H21: 電子郵件 14 | I21: 否 | K21: 1 | L21: =SUM(GuestTable[[#This Row],[小孩]:[大人]]) -> 1
B22: 家庭 15 | C22: 地址 15 | D22: 鄉鎮市區 15 | E22: 縣/市 15 | F22: 郵遞區號 15 | G22: 電話 15 | H22: 電子郵件 15 | K22: 2 | L22: =SUM(GuestTable[[#This Row],[小孩]:[大人]]) -> 2

Sheet 餐飲
B3: 餐飲
B5: 輸入成本與估計的份量，本工具便會根據總出席數，自動為您算出總份量與單份成本
B6: 食物或飲料項目 | C6: 總成本 | D6: 每個小孩的份量 | E6: 每個大人的份量 | F6: 總份量 | G6: 單份成本 | H6: 每個小孩的成本 | I6: 每個大人的成本 | J6: 附註
B7: 汽水 | C7: NT$450.00 | D7: 0.5 | E7: 2 | F7: =(FoodTable[[#This Row],[每個小孩的份量]]*ChildrenTotal)+(FoodTable[[#This Row],[每個大人的份量]]*AdultTotal) -> 62 | G7: =IFERROR(FoodTable[[#This Row],[總成本]]/FoodTable[[#This Row],[總份量]],"") -> NT$7.26 | H7: =IFERROR(FoodTable[[#This Row],[單份成本]]*FoodTable[[#This Row],[每個小孩的份量]],"") -> NT$3.63 | I7: =IFERROR(FoodTable[[#This Row],[單份成本]]*FoodTable[[#This Row],[每個大人的份量]],"") -> NT$14.52 | J7: 2 公升瓶裝
B8: 盒裝果汁 | C8: NT$450.00 | D8: 2 | E8: 0 | F8: =(FoodTable[[#This Row],[每個小孩的份量]]*ChildrenTotal)+(FoodTable[[#This Row],[每個大人的份量]]*AdultTotal) -> 40 | G8: =IFERROR(FoodTable[[#This Row],[總成本]]/FoodTable[[#This Row],[總份量]],"") -> NT$11.25 | H8: =IFERROR(FoodTable[[#This Row],[單份成本]]*FoodTable[[#This Row],[每個小孩的份量]],"") -> NT$22.50 | I8: =IFERROR(FoodTable[[#This Row],[單份成本]]*FoodTable[[#This Row],[每個大人的份量]],"") -> NT$0.00 | J8: 蘋果和白葡萄
B9: 酒 | C9: NT$1,500.00 | D9: 0 | E9: 2 | F9: =(FoodTable[[#This Row],[每個小孩的份量]]*ChildrenTotal)+(FoodTable[[#This Row],[每個大人的份量]]*AdultTotal) -> 52 | G9: =IFERROR(FoodTable[[#This Row],[總成本]]/FoodTable[[#This Row],[總份量]],"") -> NT$28.85 | H9: =IFERROR(FoodTable[[#This Row],[單份成本]]*FoodTable[[#This Row],[每個小孩的份量]],"") -> NT$0.00 | I9: =IFERROR(FoodTable[[#This Row],[單份成本]]*FoodTable[[#This Row],[每個大人的份量]],"") -> NT$57.69
B10: 蛋糕 | C10: NT$2,250.00 | D10: 1 | E10: 1 | F10: =(FoodTable[[#This Row],[每個小孩的份量]]*ChildrenTotal)+(FoodTable[[#This Row],[每個大人的份量]]*AdultTotal) -> 46 | G10: =IFERROR(FoodTable[[#This Row],[總成本]]/FoodTable[[#This Row],[總份量]],"") -> NT$48.91 | H10: =IFERROR(FoodTable[[#This Row],[單份成本]]*FoodTable[[#This Row],[每個小孩的份量]],"") -> NT$48.91 | I10: =IFERROR(FoodTable[[#This Row],[單份成本]]*FoodTable[[#This Row],[每個大人的份量]],"") -> NT$48.91 | J10: 向當地的麵包店訂購
B11: 冰淇淋 | C11: NT$600.00 | D11: 1 | E11: 1.5 | F11: =(FoodTable[[#This Row],[每個小孩的份量]]*ChildrenTotal)+(FoodTable[[#This Row],[每個大人的份量]]*AdultTotal) -> 59 | G11: =IFERROR(FoodTable[[#This Row],[總成本]]/FoodTable[[#This Row],[總份量]],"") -> NT$10.17 | H11: =IFERROR(FoodTable[[#This Row],[單份成本]]*FoodTable[[#This Row],[每個小孩的份量]],"") -> NT$10.17 | I11: =IFERROR(FoodTable[[#This Row],[單份成本]]*FoodTable[[#This Row],[每個大人的份量]],"") -> NT$15.25
B12: 布丁杯 | C12: NT$450.00 | D12: 1 | E12: 0 | F12: =(FoodTable[[#This Row],[每個小孩的份量]]*ChildrenTotal)+(FoodTable[[#This Row],[每個大人的份量]]*AdultTotal) -> 20 | G12: =IFERROR(FoodTable[[#This Row],[總成本]]/FoodTable[[#This Row],[總份量]],"") -> NT$22.50 | H12: =IFERROR(FoodTable[[#This Row],[單份成本]]*FoodTable[[#This Row],[每個小孩的份量]],"") -> NT$22.50 | I12: =IFERROR(FoodTable[[#This Row],[單份成本]]*FoodTable[[#This Row],[每個大人的份量]],"") -> NT$0.00 | J12: 購買杯裝布丁：香草和巧克力口味
B13: 鑲蘑菇 | C13: NT$960.00 | D13: 1 | E13: 2 | F13: =(FoodTable[[#This Row],[每個小孩的份量]]*ChildrenTotal)+(FoodTable[[#This Row],[每個大人的份量]]*AdultTotal) -> 72 | G13: =IFERROR(FoodTable[[#This Row],[總成本]]/FoodTable[[#This Row],[總份量]],"") -> NT$13.33 | H13: =IFERROR(FoodTable[[#This Row],[單份成本]]*FoodTable[[#This Row],[每個小孩的份量]],"") -> NT$13.33 | I13: =IFERROR(FoodTable[[#This Row],[單份成本]]*FoodTable[[#This Row],[每個大人的份量]],"") -> NT$26.67 | J13: 鈕扣蘑菇鑲奶油起司和香腸
B14: 普切塔 | C14: NT$660.00 | D14: 0 | E14: 3 | F14: =(FoodTable[[#This Row],[每個小孩的份量]]*ChildrenTotal)+(FoodTable[[#This Row],[每個大人的份量]]*AdultTotal) -> 78 | G14: =IFERROR(FoodTable[[#This Row],[總成本]]/FoodTable[[#This Row],[總份量]],"") -> NT$8.46 | H14: =IFERROR(FoodTable[[#This Row],[單份成本]]*FoodTable[[#This Row],[每個小孩的份量]],"") -> NT$0.00 | I14: =IFERROR(FoodTable[[#This Row],[單份成本]]*FoodTable[[#This Row],[每個大人的份量]],"") -> NT$25.38 | J14: 蕃茄和羅勒
B15: 煙燻鮭魚 | C15: NT$1,500.00 | D15: 1 | E15: 2 | F15: =(FoodTable[[#This Row],[每個小孩的份量]]*ChildrenTotal)+(FoodTable[[#This Row],[每個大人的份量]]*AdultTotal) -> 72 | G15: =IFERROR(FoodTable[[#This Row],[總成本]]/FoodTable[[#This Row],[總份量]],"") -> NT$20.83 | H15: =IFERROR(FoodTable[[#This Row],[單份成本]]*FoodTable[[#This Row],[每個小孩的份量]],"") -> NT$20.83 | I15: =IFERROR(FoodTable[[#This Row],[單份成本]]*FoodTable[[#This Row],[每個大人的份量]],"") -> NT$41.67
B16: 迷你貝果 | C16: NT$600.00 | D16: 1 | E16: 2 | F16: =(FoodTable[[#This Row],[每個小孩的份量]]*ChildrenTotal)+(FoodTable[[#This Row],[每個大人的份量]]*AdultTotal) -> 72 | G16: =IFERROR(FoodTable[[#This Row],[總成本]]/FoodTable[[#This Row],[總份量]],"") -> NT$8.33 | H16: =IFERROR(FoodTable[[#This Row],[單份成本]]*FoodTable[[#This Row],[每個小孩的份量]],"") -> NT$8.33 | I16: =IFERROR(FoodTable[[#This Row],[單份成本]]*FoodTable[[#This Row],[每個大人的份量]],"") -> NT$16.67 | J16: 4 袋 - 多種混合
B17: 奶油起司 | C17: NT$300.00 | D17: 1 | E17: 2 | F17: =(FoodTable[[#This Row],[每個小孩的份量]]*ChildrenTotal)+(FoodTable[[#This Row],[每個大人的份量]]*AdultTotal) -> 72 | G17: =IFERROR(FoodTable[[#This Row],[總成本]]/FoodTable[[#This Row],[總份量]],"") -> NT$4.17 | H17: =IFERROR(FoodTable[[#This Row],[單份成本]]*FoodTable[[#This Row],[每個小孩的份量]],"") -> NT$4.17 | I17: =IFERROR(FoodTable[[#This Row],[單份成本]]*FoodTable[[#This Row],[每個大人的份量]],"") -> NT$8.33 | J17: 2 大桶
B18: 酸豆 | C18: NT$360.00 | D18: 1 | E18: 2 | F18: =(FoodTable[[#This Row],[每個小孩的份量]]*ChildrenTotal)+(FoodTable[[#This Row],[每個大人的份量]]*AdultTotal) -> 72 | G18: =IFERROR(FoodTable[[#This Row],[總成本]]/FoodTable[[#This Row],[總份量]],"") -> NT$5.00 | H18: =IFERROR(FoodTable[[#This Row],[單份成本]]*FoodTable[[#This Row],[每個小孩的份量]],"") -> NT$5.00 | I18: =IFERROR(FoodTable[[#This Row],[單份成本]]*FoodTable[[#This Row],[每個大人的份量]],"") -> NT$10.00 | J18: 3 罐
B19: 雞翅 | C19: NT$1,350.00 | D19: 2 | E19: 4 | F19: =(FoodTable[[#This Row],[每個小孩的份量]]*ChildrenTotal)+(FoodTable[[#This Row],[每個大人的份量]]*AdultTotal) -> 144 | G19: =IFERROR(FoodTable[[#This Row],[總成本]]/FoodTable[[#This Row],[總份量]],"") -> NT$9.38 | H19: =IFERROR(FoodTable[[#This Row],[單份成本]]*FoodTable[[#This Row],[每個小孩的份量]],"") -> NT$18.75 | I19: =IFERROR(FoodTable[[#This Row],[單份成本]]*FoodTable[[#This Row],[每個大人的份量]],"") -> NT$37.50 | J19: 向當地的雞翅店購買
B20: 鷹嘴豆泥 | C20: NT$300.00 | D20: 4 | E20: 6 | F20: =(FoodTable[[#This Row],[每個小孩的份量]]*ChildrenTotal)+(FoodTable[[#This Row],[每個大人的份量]]*AdultTotal) -> 236 | G20: =IFERROR(FoodTable[[#This Row],[總成本]]/FoodTable[[#This Row],[總份量]],"") -> NT$1.27 | H20: =IFERROR(FoodTable[[#This Row],[單份成本]]*FoodTable[[#This Row],[每個小孩的份量]],"") -> NT$5.08 | I20: =IFERROR(FoodTable[[#This Row],[單份成本]]*FoodTable[[#This Row],[每個大人的份量]],"") -> NT$7.63 | J20: 前一天晚上做
B21: 帕馬森起司皮塔脆片 | C21: NT$420.00 | D21: 4 | E21: 6 | F21: =(FoodTable[[#This Row],[每個小孩的份量]]*ChildrenTotal)+(FoodTable[[#This Row],[每個大人的份量]]*AdultTotal) -> 236 | G21: =IFERROR(FoodTable[[#This Row],[總成本]]/FoodTable[[#This Row],[總份量]],"") -> NT$1.78 | H21: =IFERROR(FoodTable[[#This Row],[單份成本]]*FoodTable[[#This Row],[每個小孩的份量]],"") -> NT$7.12 | I21: =IFERROR(FoodTable[[#This Row],[單份成本]]*FoodTable[[#This Row],[每個大人的份量]],"") -> NT$10.68 | J21: 前一天晚上做
B22: 什錦蔬菜 | C22: NT$900.00 | D22: 4 | E22: 10 | F22: =(FoodTable[[#This Row],[每個小孩的份量]]*ChildrenTotal)+(FoodTable[[#This Row],[每個大人的份量]]*AdultTotal) -> 340 | G22: =IFERROR(FoodTable[[#This Row],[總成本]]/FoodTable[[#This Row],[總份量]],"") -> NT$2.65 | H22: =IFERROR(FoodTable[[#This Row],[單份成本]]*FoodTable[[#This Row],[每個小孩的份量]],"") -> NT$10.59 | I22: =IFERROR(FoodTable[[#This Row],[單份成本]]*FoodTable[[#This Row],[每個大人的份量]],"") -> NT$26.47 | J22: 紅蘿蔔條、芹菜、青花椰菜、白花椰菜、紅椒和青椒
B23: 起司球 | C23: NT$450.00 | D23: 5 | E23: 10 | F23: =(FoodTable[[#This Row],[每個小孩的份量]]*ChildrenTotal)+(FoodTable[[#This Row],[每個大人的份量]]*AdultTotal) -> 360 | G23: =IFERROR(FoodTable[[#This Row],[總成本]]/FoodTable[[#This Row],[總份量]],"") -> NT$1.25 | H23: =IFERROR(FoodTable[[#This Row],[單份成本]]*FoodTable[[#This Row],[每個小孩的份量]],"") -> NT$6.25 | I23: =IFERROR(FoodTable[[#This Row],[單份成本]]*FoodTable[[#This Row],[每個大人的份量]],"") -> NT$12.50 | J23: 組合：奶油起司、含堅果的陳年起司
B24: 餅乾 | C24: NT$750.00 | D24: 5 | E24: 10 | F24: =(FoodTable[[#This Row],[每個小孩的份量]]*ChildrenTotal)+(FoodTable[[#This Row],[每個大人的份量]]*AdultTotal) -> 360 | G24: =IFERROR(FoodTable[[#This Row],[總成本]]/FoodTable[[#This Row],[總份量]],"") -> NT$2.08 | H24: =IFERROR(FoodTable[[#This Row],[單份成本]]*FoodTable[[#This Row],[每個小孩的份量]],"") -> NT$10.42 | I24: =IFERROR(FoodTable[[#This Row],[單份成本]]*FoodTable[[#This Row],[每個大人的份量]],"") -> NT$20.83 | J24: 多種混合
B25: 合計 | C25: =SUBTOTAL(109,FoodTable[總成本]) -> NT$14,250.00 | D25: =SUBTOTAL(109,FoodTable[每個小孩的份量]) -> 34.5 | E25: =SUBTOTAL(109,FoodTable[每個大人的份量]) -> 65.5 | F25: =SUBTOTAL(109,FoodTable[總份量]) -> 2393 | G25: =SUBTOTAL(109,FoodTable[單份成本]) -> NT$207.47 | H25: =SUBTOTAL(109,FoodTable[每個小孩的成本]) -> NT$217.59 | I25: =SUBTOTAL(109,FoodTable[每個大人的成本]) -> NT$380.70

Sheet 其他必需品
B3: 其他必需品
B6: 設備與供應品 | C6: 成本 | D6: 已購買 | E6: 附註
B7: 租場 | C7: NT$7,500.00 | D7: 是
B8: 亞麻桌巾 | C8: NT$900.00 | D8: 是 | E8: 已租
B9: 桌椅 | C9: NT$0.00 | E9: 包含在租場內
B10: 飲料紙巾 | C10: NT$750.00
B11: 餐巾 | C11: NT$600.00 | E11: 已租
B12: 餐桌服務 | C12: NT$1,500.00 | E12: 已租
B13: 玻璃器皿 | C13: NT$750.00 | E13: 已租
B14: 合計 | C14: =SUBTOTAL(109,Table1Budget[成本]) -> NT$12,000.00
B18: 佈置裝飾 | C18: 成本 | D18: 已購買 | E18: 附註
B19: 氣球 | C19: NT$750.00
B20: 氦氣箱 | C20: NT$1,500.00 | E20: 已租
B21: 餐桌中央擺飾 | C21: NT$3,000.00 | D21: 是 | E21: 共 10 項
B22: 玻璃花瓶 | C22: NT$0.00 | E22: 向安娜借
B23: 合計 | C23: =SUBTOTAL(109,Table2Budget[成本]) -> NT$5,250.00
B27: 其他 | C27: 成本 | D27: 已購買 | E27: 附註
B28: 邀請卡 | C28: NT$1,500.00 | D28: 是
B29: 郵資 | C29: NT$1,800.00 | D29: 是
B30: 攝影師 | C30: NT$3,750.00 | E30: 2 小時 (下午 2 - 4 點)
B31: 派對小禮物 | C31: NT$1,500.00
B32: 合計 | C32: =SUBTOTAL(109,Table3Budget[成本]) -> NT$8,550.00

Sheet 座位安排方格
A1: 座位安排
AH35: *1 個方塊= 約 1 平方英呎
A36: 附註 | T36: =" 已確認賓客總數： "&ConfirmedGuests -> 已確認賓客總數： 46
T37: 您可以採用以下任一種餐桌擺設方式：
U38: =ROUNDUP(ConfirmedGuests/6,0)&" 個 54 吋圓桌 (6 個座位)" -> 8 個 54 吋圓桌 (6 個座位)
U39: =ROUNDUP(ConfirmedGuests/8,0) &" 個 60 吋圓桌 (8 個座位)" -> 6 個 60 吋圓桌 (8 個座位)
U40: =ROUNDUP(ConfirmedGuests/10,0)&" 個 72 吋圓桌 (10 個座位)" -> 5 個 72 吋圓桌 (10 個座位)
U41: =ROUNDUP(ConfirmedGuests/6,0)& " 個 30 吋 x 72 吋方桌 (6 個座位)" -> 8 個 30 吋 x 72 吋方桌 (6 個座位)
U42: =ROUNDUP(ConfirmedGuests/8,0)&" 個 30 吋 x 96 吋方桌 (8 個座位)" -> 6 個 30 吋 x 96 吋方桌 (8 個座位)
T43: (希望的餐桌間距：約 42 吋)
